[Event "Titled Tuesday Blitz January 17 Early 2023"]
[White "Omelja, Artem"]
[Black "Gurevich, Dmitry"]
[WhiteFideId "14119846"]
[BlackFideId "2000407"]
[WhiteElo "2446"]
[BlackElo "2393"]
[Result "1-0"]
[Round "09"]
[TimeControl "180+2"]
[Date "2023.01.17"]
[WhiteClock "0:00:15"]
[BlackClock "0:00:03"]

1. e4 {[%clk 0:03:00]}  c5 {[%clk 0:02:53]} 2. Nf3 {[%clk 0:03:00]}  d6 {[%clk 0:02:52]} 3. Bb5+ {[%clk 0:02:58]}  Bd7 {[%clk 0:02:52]} 4. Bxd7+ {[%clk 0:02:58]}  Qxd7 {[%clk 0:02:52]} 5. O-O {[%clk 0:02:59]}  Nc6 {[%clk 0:02:51]} 6. Re1 {[%clk 0:02:59]}  Nf6 {[%clk 0:02:49]} 7. c3 {[%clk 0:03:00]}  e6 {[%clk 0:02:49]} 8. a4 {[%clk 0:02:57]}  Be7 {[%clk 0:02:48]} 9. Na3 {[%clk 0:02:57]}  O-O {[%clk 0:02:47]} 10. Nc4 {[%clk 0:02:52]}  d5 {[%clk 0:02:46]} 11. exd5 {[%clk 0:02:49]}  Qxd5 {[%clk 0:02:36]} 12. Nce5 {[%clk 0:02:48]}  Nxe5 {[%clk 0:02:26]} 13. Rxe5 {[%clk 0:02:46]}  Qc6 {[%clk 0:02:24]} 14. d4 {[%clk 0:02:44]}  Rad8 {[%clk 0:02:19]} 15. Be3 {[%clk 0:02:44]}  Ng4 {[%clk 0:02:11]} 16. Rh5 {[%clk 0:02:27]}  g6 {[%clk 0:02:09]} 17. Rh3 {[%clk 0:02:20]}  cxd4 {[%clk 0:01:53]} 18. Nxd4 {[%clk 0:02:20]}  Nxe3 {[%clk 0:01:46]} 19. Rxe3 {[%clk 0:02:17]}  Qd5 {[%clk 0:01:44]} 20. Qe2 {[%clk 0:02:15]}  Bc5 {[%clk 0:01:39]} 21. Re5 {[%clk 0:02:13]}  Qd6 {[%clk 0:01:30]} 22. Nf3 {[%clk 0:02:12]}  a5 {[%clk 0:01:14]} 23. h4 {[%clk 0:02:09]}  b6 {[%clk 0:01:10]} 24. h5 {[%clk 0:02:08]}  Qd3 {[%clk 0:01:09]} 25. Re1 {[%clk 0:02:02]}  Qxe2 {[%clk 0:01:07]} 26. R5xe2 {[%clk 0:02:00]}  Kg7 {[%clk 0:01:03]} 27. hxg6 {[%clk 0:02:00]}  hxg6 {[%clk 0:01:02]} 28. g3 {[%clk 0:02:00]}  Rd5 {[%clk 0:01:00]} 29. Kg2 {[%clk 0:02:00]}  Rfd8 {[%clk 0:00:59]} 30. Re5 {[%clk 0:01:58]}  Kf6 {[%clk 0:00:54]} 31. Rxd5 {[%clk 0:01:58]}  Rxd5 {[%clk 0:00:54]} 32. Re2 {[%clk 0:01:59]}  Rd1 {[%clk 0:00:50]} 33. Nd2 {[%clk 0:01:55]}  Ke7 {[%clk 0:00:42]} 34. Ne4 {[%clk 0:01:55]}  Rb1 {[%clk 0:00:40]} 35. Kf3 {[%clk 0:01:43]}  e5 {[%clk 0:00:37]} 36. Nxc5 {[%clk 0:01:42]}  bxc5 {[%clk 0:00:34]} 37. Rxe5+ {[%clk 0:01:43]}  Kd6 {[%clk 0:00:34]} 38. Re2 {[%clk 0:01:43]}  Ra1 {[%clk 0:00:29]} 39. Kf4 {[%clk 0:01:41]}  f6 {[%clk 0:00:26]} 40. Re4 {[%clk 0:01:36]}  Rb1 {[%clk 0:00:24]} 41. Re2 {[%clk 0:01:34]}  Ra1 {[%clk 0:00:24]} 42. Rd2+ {[%clk 0:01:33]}  Ke6 {[%clk 0:00:22]} 43. b3 {[%clk 0:01:26]}  Rb1 {[%clk 0:00:22]} 44. c4 {[%clk 0:01:26]}  Rxb3 {[%clk 0:00:21]} 45. Rd5 {[%clk 0:01:26]}  Rb4 {[%clk 0:00:21]} 46. Rxc5 {[%clk 0:01:26]}  Rxa4 {[%clk 0:00:21]} 47. Rc6+ {[%clk 0:01:27]}  Ke7 {[%clk 0:00:20]} 48. Ke4 {[%clk 0:01:26]}  Ra2 {[%clk 0:00:20]} 49. f4 {[%clk 0:01:26]}  Re2+ {[%clk 0:00:15]} 50. Kd5 {[%clk 0:01:25]}  Rd2+ {[%clk 0:00:15]} 51. Ke4 {[%clk 0:01:20]}  Rd6 {[%clk 0:00:15]} 52. Rc7+ {[%clk 0:01:18]}  Rd7 {[%clk 0:00:15]} 53. Rc8 {[%clk 0:01:12]}  Ra7 {[%clk 0:00:15]} 54. Kd5 {[%clk 0:01:04]}  a4 {[%clk 0:00:13]} 55. Rb8 {[%clk 0:01:04]}  a3 {[%clk 0:00:13]} 56. Rb1 {[%clk 0:01:04]}  a2 {[%clk 0:00:13]} 57. Ra1 {[%clk 0:01:05]}  Kd7 {[%clk 0:00:13]} 58. Kc5 {[%clk 0:01:03]}  f5 {[%clk 0:00:10]} 59. Kb6 {[%clk 0:01:01]}  Ra3 {[%clk 0:00:10]} 60. c5 {[%clk 0:01:00]}  Rb3+ {[%clk 0:00:10]} 61. Ka5 {[%clk 0:00:59]}  Rb2 {[%clk 0:00:10]} 62. Ka4 {[%clk 0:00:52]}  Kc6 {[%clk 0:00:10]} 63. Ka3 {[%clk 0:00:53]}  Rg2 {[%clk 0:00:10]} 64. Kb4 {[%clk 0:00:33]}  Rb2+ {[%clk 0:00:04]} 65. Kc3 {[%clk 0:00:33]}  Rg2 {[%clk 0:00:04]} 66. Kd4 {[%clk 0:00:33]}  Rd2+ {[%clk 0:00:03]} 67. Kc3 {[%clk 0:00:29]}  Rg2 {[%clk 0:00:02]} 68. Kc4 {[%clk 0:00:25]}  Rc2+ {[%clk 0:00:03]} 69. Kd3 {[%clk 0:00:25]}  Rg2 {[%clk 0:00:03]} 70. Kd4 {[%clk 0:00:25]}  Rc2 {[%clk 0:00:03]} 71. Ke5 {[%clk 0:00:22]}  Rxc5+ {[%clk 0:00:03]} 72. Kf6 {[%clk 0:00:22]}  Rc3 {[%clk 0:00:03]} 73. Kxg6 {[%clk 0:00:22]}  Rxg3+ {[%clk 0:00:04]} 74. Kxf5 {[%clk 0:00:22]}  Rg2 {[%clk 0:00:04]} 75. Ke6 {[%clk 0:00:22]}  Kb5 {[%clk 0:00:05]} 76. f5 {[%clk 0:00:23]}  Kb4 {[%clk 0:00:06]} 77. f6 {[%clk 0:00:23]}  Kb3 {[%clk 0:00:06]} 78. Rf1 {[%clk 0:00:22]}  Rf2 {[%clk 0:00:04]} 79. Rxf2 {[%clk 0:00:19]}  a1=Q {[%clk 0:00:03]} 80. f7 {[%clk 0:00:19]}  Qa6+ {[%clk 0:00:02]} 81. Kf5 {[%clk 0:00:17]}  Qb5+ {[%clk 0:00:02]} 82. Kg6 {[%clk 0:00:17]}  Qb6+ {[%clk 0:00:02]} 83. Rf6 {[%clk 0:00:16]}  Qf2 {[%clk 0:00:03]} 84. Rxf2 {[%clk 0:00:15]} 1-0


[Site "https://www.chess.com"]

[Event "Titled Tuesday Blitz January 17 Early 2023"]
[White "Degenbaev, Aziz"]
[Black "Odegov, Artem"]
[WhiteFideId "13802640"]
[BlackFideId "34183644"]
[WhiteElo "2203"]
[BlackElo "2261"]
[Result "0-1"]
[Round "09"]
[TimeControl "180+2"]
[Date "2023.01.17"]
[WhiteClock "0:00:01"]
[BlackClock "0:00:18"]

1. e4 {[%clk 0:03:00]}  e6 {[%clk 0:02:57]} 2. d4 {[%clk 0:03:00]}  d5 {[%clk 0:02:56]} 3. Nc3 {[%clk 0:03:00]}  Bb4 {[%clk 0:02:56]} 4. e5 {[%clk 0:02:59]}  c5 {[%clk 0:02:56]} 5. a3 {[%clk 0:02:59]}  Bxc3+ {[%clk 0:02:56]} 6. bxc3 {[%clk 0:03:00]}  Ne7 {[%clk 0:02:57]} 7. Nf3 {[%clk 0:03:00]}  Qa5 {[%clk 0:02:56]} 8. Bd2 {[%clk 0:02:59]}  Nbc6 {[%clk 0:02:55]} 9. a4 {[%clk 0:02:59]}  c4 {[%clk 0:02:54]} 10. Be2 {[%clk 0:02:49]}  O-O {[%clk 0:02:54]} 11. O-O {[%clk 0:02:50]}  f6 {[%clk 0:02:52]} 12. exf6 {[%clk 0:02:36]}  Rxf6 {[%clk 0:02:53]} 13. Qb1 {[%clk 0:02:32]}  Qc7 {[%clk 0:02:50]} 14. Re1 {[%clk 0:02:13]}  Bd7 {[%clk 0:02:38]} 15. Qc1 {[%clk 0:01:56]}  Raf8 {[%clk 0:02:35]} 16. Qa3 {[%clk 0:01:50]}  Ng6 {[%clk 0:02:29]} 17. Bf1 {[%clk 0:01:21]}  e5 {[%clk 0:01:32]} 18. dxe5 {[%clk 0:01:02]}  Ncxe5 {[%clk 0:01:30]} 19. Nxe5 {[%clk 0:01:00]}  Nxe5 {[%clk 0:01:31]} 20. f4 {[%clk 0:00:44]}  Ng4 {[%clk 0:01:28]} 21. a5 {[%clk 0:00:40]}  Bc6 {[%clk 0:00:57]} 22. Qe7 {[%clk 0:00:30]}  Bd7 {[%clk 0:00:41]} 23. h3 {[%clk 0:00:23]}  R6f7 {[%clk 0:00:36]} 24. Qb4 {[%clk 0:00:15]}  Nh6 {[%clk 0:00:30]} 25. Re7 {[%clk 0:00:05]}  Nf5 {[%clk 0:00:20]} 26. Re5 {[%clk 0:00:02]}  Bc6 {[%clk 0:00:19]} 27. Rae1 {[%clk 0:00:01]}  h6 {[%clk 0:00:18]} 28. g4 {[%clk 0:00:01]}  Nh4 {[%clk 0:00:18]} 29. Kf2 {[%clk 0:00:01]}  d4 {[%clk 0:00:18]} 0-1


[Site "https://www.chess.com"]

[Event "Titled Tuesday Blitz January 17 Early 2023"]
[White "Mayank Chakraborty"]
[Black "Makhnev, Denis"]
[WhiteFideId "25659766"]
[BlackFideId "13707647"]
[WhiteElo "2025"]
[BlackElo "2483"]
[Result "1/2-1/2"]
[Round "09"]
[TimeControl "180+2"]
[Date "2023.01.17"]
[WhiteClock "0:00:06"]
[BlackClock "0:00:04"]

1. e4 {[%clk 0:03:00]}  c6 {[%clk 0:02:58]} 2. d4 {[%clk 0:03:00]}  d5 {[%clk 0:02:59]} 3. exd5 {[%clk 0:03:00]}  cxd5 {[%clk 0:02:59]} 4. Bd3 {[%clk 0:03:01]}  Nc6 {[%clk 0:02:58]} 5. c3 {[%clk 0:03:01]}  Nf6 {[%clk 0:02:58]} 6. Bf4 {[%clk 0:03:02]}  Bg4 {[%clk 0:02:57]} 7. Qb3 {[%clk 0:03:02]}  Qd7 {[%clk 0:02:56]} 8. Nd2 {[%clk 0:03:02]}  e6 {[%clk 0:02:56]} 9. Ngf3 {[%clk 0:03:02]}  Bxf3 {[%clk 0:02:56]} 10. Nxf3 {[%clk 0:03:03]}  Bd6 {[%clk 0:02:57]} 11. Bxd6 {[%clk 0:03:00]}  Qxd6 {[%clk 0:02:57]} 12. Qxb7 {[%clk 0:02:57]}  Rb8 {[%clk 0:02:56]} 13. Qa6 {[%clk 0:02:57]}  O-O {[%clk 0:02:50]} 14. O-O {[%clk 0:02:47]}  Rb6 {[%clk 0:02:39]} 15. Qa3 {[%clk 0:02:48]}  Qxa3 {[%clk 0:02:38]} 16. bxa3 {[%clk 0:02:48]}  Rc8 {[%clk 0:02:36]} 17. Rab1 {[%clk 0:02:40]}  Na5 {[%clk 0:02:28]} 18. Rxb6 {[%clk 0:02:38]}  axb6 {[%clk 0:02:27]} 19. Rc1 {[%clk 0:02:36]}  Kf8 {[%clk 0:02:18]} 20. Ne5 {[%clk 0:02:31]}  Ke7 {[%clk 0:02:11]} 21. Kf1 {[%clk 0:02:27]}  Nd7 {[%clk 0:02:04]} 22. Nxd7 {[%clk 0:02:21]}  Kxd7 {[%clk 0:02:04]} 23. Bb5+ {[%clk 0:02:18]}  Kd6 {[%clk 0:02:02]} 24. Ke2 {[%clk 0:02:10]}  Nc4 {[%clk 0:02:00]} 25. a4 {[%clk 0:01:48]}  Na3 {[%clk 0:01:58]} 26. Bd3 {[%clk 0:01:46]}  Ra8 {[%clk 0:01:55]} 27. h4 {[%clk 0:01:35]}  h6 {[%clk 0:01:52]} 28. Bc2 {[%clk 0:01:29]}  Nxc2 {[%clk 0:01:48]} 29. Rxc2 {[%clk 0:01:30]}  Rxa4 {[%clk 0:01:48]} 30. Kd3 {[%clk 0:01:30]}  Ra3 {[%clk 0:01:45]} 31. Rb2 {[%clk 0:01:28]}  Kc6 {[%clk 0:01:45]} 32. h5 {[%clk 0:01:28]}  b5 {[%clk 0:01:39]} 33. Kd2 {[%clk 0:01:03]}  f6 {[%clk 0:01:22]} 34. f4 {[%clk 0:01:00]}  b4 {[%clk 0:01:02]} 35. cxb4 {[%clk 0:00:53]}  Kb5 {[%clk 0:01:00]} 36. Rc2 {[%clk 0:00:49]}  Kxb4 {[%clk 0:00:47]} 37. Ke2 {[%clk 0:00:37]}  f5 {[%clk 0:00:19]} 38. Rc6 {[%clk 0:00:24]}  Rxa2+ {[%clk 0:00:18]} 39. Kf3 {[%clk 0:00:21]}  Ra3+ {[%clk 0:00:19]} 40. Kf2 {[%clk 0:00:19]}  Rd3 {[%clk 0:00:16]} 41. Rxe6 {[%clk 0:00:19]}  Rxd4 {[%clk 0:00:16]} 42. g3 {[%clk 0:00:17]}  Kc3 {[%clk 0:00:15]} 43. Re5 {[%clk 0:00:15]}  Rd2+ {[%clk 0:00:15]} 44. Kf3 {[%clk 0:00:15]}  Rd3+ {[%clk 0:00:15]} 45. Ke2 {[%clk 0:00:13]}  Rxg3 {[%clk 0:00:12]} 46. Rxd5 {[%clk 0:00:12]}  Rh3 {[%clk 0:00:09]} 47. Rxf5 {[%clk 0:00:11]}  Kd4 {[%clk 0:00:10]} 48. Re5 {[%clk 0:00:11]}  Rg3 {[%clk 0:00:05]} 49. Kf2 {[%clk 0:00:09]}  Ra3 {[%clk 0:00:05]} 50. Re7 {[%clk 0:00:07]}  Rh3 {[%clk 0:00:04]} 51. Re5 {[%clk 0:00:07]}  Ra3 {[%clk 0:00:03]} 52. Kg2 {[%clk 0:00:06]}  Rb3 {[%clk 0:00:03]} 53. Kf2 {[%clk 0:00:06]}  Ra3 {[%clk 0:00:04]} 1/2-1/2


[Site "https://www.chess.com"]

[Event "Titled Tuesday Blitz January 17 Early 2023"]
[White "Alex_Sahakyan2006"]
[Black "Nguyen Hong Nhung"]
[BlackFideId "12412201"]
[WhiteElo "2675"]
[BlackElo "2003"]
[Result "1-0"]
[Round "09"]
[TimeControl "180+2"]
[Date "2023.01.17"]
[WhiteClock "0:00:18"]
[BlackClock "0:00:07"]

1. c4 {[%clk 0:03:00]}  f5 {[%clk 0:02:59]} 2. Nc3 {[%clk 0:02:59]}  Nf6 {[%clk 0:02:59]} 3. g3 {[%clk 0:02:58]}  g6 {[%clk 0:02:58]} 4. Bg2 {[%clk 0:02:58]}  e5 {[%clk 0:02:58]} 5. d3 {[%clk 0:02:54]}  Bg7 {[%clk 0:02:57]} 6. Rb1 {[%clk 0:02:52]}  O-O {[%clk 0:02:57]} 7. e3 {[%clk 0:02:46]}  d6 {[%clk 0:02:57]} 8. Nge2 {[%clk 0:02:45]}  Nc6 {[%clk 0:02:56]} 9. b4 {[%clk 0:02:45]}  Ne7 {[%clk 0:02:38]} 10. b5 {[%clk 0:02:40]}  Qe8 {[%clk 0:02:32]} 11. a4 {[%clk 0:02:37]}  a6 {[%clk 0:02:26]} 12. O-O {[%clk 0:02:36]}  axb5 {[%clk 0:02:25]} 13. axb5 {[%clk 0:02:37]}  g5 {[%clk 0:02:16]} 14. f4 {[%clk 0:02:36]}  h6 {[%clk 0:02:16]} 15. c5 {[%clk 0:02:19]}  Ng6 {[%clk 0:01:45]} 16. d4 {[%clk 0:02:10]}  gxf4 {[%clk 0:01:39]} 17. gxf4 {[%clk 0:02:02]}  e4 {[%clk 0:01:38]} 18. b6 {[%clk 0:02:02]}  Qe7 {[%clk 0:00:51]} 19. Nb5 {[%clk 0:01:47]}  dxc5 {[%clk 0:00:50]} 20. Nxc7 {[%clk 0:01:45]}  Be6 {[%clk 0:00:23]} 21. Nxa8 {[%clk 0:01:35]}  Rxa8 {[%clk 0:00:24]} 22. dxc5 {[%clk 0:01:35]}  Qxc5 {[%clk 0:00:24]} 23. Nd4 {[%clk 0:01:34]}  Bd7 {[%clk 0:00:22]} 24. Qb3+ {[%clk 0:01:33]}  Kh7 {[%clk 0:00:20]} 25. Bb2 {[%clk 0:01:28]}  Nd5 {[%clk 0:00:20]} 26. Rbc1 {[%clk 0:01:22]}  Qd6 {[%clk 0:00:17]} 27. Nb5 {[%clk 0:01:05]}  Qxb6 {[%clk 0:00:15]} 28. Bxg7 {[%clk 0:01:00]}  Qxb5 {[%clk 0:00:13]} 29. Qxb5 {[%clk 0:00:58]}  Bxb5 {[%clk 0:00:14]} 30. Bd4 {[%clk 0:00:58]}  Bxf1 {[%clk 0:00:13]} 31. Bxf1 {[%clk 0:00:59]}  Rd8 {[%clk 0:00:12]} 32. Rb1 {[%clk 0:00:50]}  Rd7 {[%clk 0:00:11]} 33. Bb5 {[%clk 0:00:50]}  Rc7 {[%clk 0:00:11]} 34. Bf1 {[%clk 0:00:46]}  Rd7 {[%clk 0:00:11]} 35. Bh3 {[%clk 0:00:35]}  Nh4 {[%clk 0:00:10]} 36. Kf2 {[%clk 0:00:20]}  Nxf4 {[%clk 0:00:09]} 37. Bf6 {[%clk 0:00:21]}  Nxh3+ {[%clk 0:00:08]} 38. Kg3 {[%clk 0:00:20]}  Ng5 {[%clk 0:00:07]} 39. Kxh4 {[%clk 0:00:20]}  Kg6 {[%clk 0:00:08]} 40. Rb6 {[%clk 0:00:19]}  Kf7 {[%clk 0:00:06]} 41. Bxg5 {[%clk 0:00:18]}  hxg5+ {[%clk 0:00:07]} 42. Kxg5 {[%clk 0:00:19]}  Rd3 {[%clk 0:00:07]} 43. Rxb7+ {[%clk 0:00:17]}  Ke6 {[%clk 0:00:07]} 44. Rb6+ {[%clk 0:00:18]}  Kd5 {[%clk 0:00:07]} 45. Kf4 {[%clk 0:00:17]}  Kc4 {[%clk 0:00:06]} 46. Rc6+ {[%clk 0:00:16]}  Kb3 {[%clk 0:00:06]} 47. Rf6 {[%clk 0:00:17]}  Rd2 {[%clk 0:00:06]} 48. Rxf5 {[%clk 0:00:17]}  Rxh2 {[%clk 0:00:06]} 49. Kxe4 {[%clk 0:00:18]}  Kc4 {[%clk 0:00:07]} 50. Rf8 {[%clk 0:00:17]}  Rh5 {[%clk 0:00:06]} 51. Rf4 {[%clk 0:00:17]}  Kc5 {[%clk 0:00:06]} 52. Rf5+ {[%clk 0:00:17]}  Rxf5 {[%clk 0:00:07]} 53. Kxf5 {[%clk 0:00:18]} 1-0


[Site "https://www.chess.com"]

[Event "Titled Tuesday Blitz January 17 Early 2023"]
[White "Gauri, Shankar"]
[Black "Kazancev, Valerij M"]
[WhiteFideId "5041350"]
[BlackFideId "4179609"]
[WhiteElo "2360"]
[BlackElo "2313"]
[Result "1-0"]
[Round "09"]
[TimeControl "180+2"]
[Date "2023.01.17"]
[WhiteClock "0:00:06"]
[BlackClock "0:00:06"]

1. d4 {[%clk 0:02:59]}  g6 {[%clk 0:03:00]} 2. e4 {[%clk 0:02:59]}  Bg7 {[%clk 0:03:01]} 3. Nf3 {[%clk 0:03:00]}  e6 {[%clk 0:03:01]} 4. c3 {[%clk 0:02:55]}  Ne7 {[%clk 0:03:00]} 5. Bd3 {[%clk 0:02:55]}  a6 {[%clk 0:02:56]} 6. h4 {[%clk 0:02:51]}  h6 {[%clk 0:02:56]} 7. Nbd2 {[%clk 0:02:49]}  d5 {[%clk 0:02:49]} 8. Qe2 {[%clk 0:02:40]}  Nd7 {[%clk 0:02:40]} 9. e5 {[%clk 0:02:31]}  c5 {[%clk 0:02:40]} 10. Nf1 {[%clk 0:02:21]}  b5 {[%clk 0:02:39]} 11. Ng3 {[%clk 0:02:08]}  b4 {[%clk 0:02:22]} 12. Be3 {[%clk 0:01:53]}  bxc3 {[%clk 0:02:19]} 13. bxc3 {[%clk 0:01:53]}  Qa5 {[%clk 0:02:19]} 14. O-O {[%clk 0:01:49]}  c4 {[%clk 0:02:16]} 15. Bc2 {[%clk 0:01:30]}  Qxc3 {[%clk 0:02:15]} 16. Rfb1 {[%clk 0:01:14]}  Qa3 {[%clk 0:02:09]} 17. Bd2 {[%clk 0:01:06]}  Nc6 {[%clk 0:01:56]} 18. Ne4 {[%clk 0:00:47]}  O-O {[%clk 0:01:08]} 19. Nd6 {[%clk 0:00:47]}  Rb8 {[%clk 0:00:42]} 20. h5 {[%clk 0:00:47]}  c3 {[%clk 0:00:17]} 21. Bc1 {[%clk 0:00:43]}  Rb2 {[%clk 0:00:17]} 22. hxg6 {[%clk 0:00:27]}  f5 {[%clk 0:00:16]} 23. exf6 {[%clk 0:00:20]}  Rxf6 {[%clk 0:00:14]} 24. Ne8 {[%clk 0:00:19]}  Qb4 {[%clk 0:00:10]} 25. Nxf6+ {[%clk 0:00:18]}  Nxf6 {[%clk 0:00:11]} 26. a3 {[%clk 0:00:17]}  Nxd4 {[%clk 0:00:10]} 27. Nxd4 {[%clk 0:00:15]}  Qxd4 {[%clk 0:00:11]} 28. Bxb2 {[%clk 0:00:11]}  cxb2 {[%clk 0:00:11]} 29. Ra2 {[%clk 0:00:11]}  Ng4 {[%clk 0:00:09]} 30. Raxb2 {[%clk 0:00:11]}  Bd7 {[%clk 0:00:08]} 31. Rb8+ {[%clk 0:00:11]}  Bf8 {[%clk 0:00:08]} 32. Qf3 {[%clk 0:00:09]}  Nf6 {[%clk 0:00:08]} 33. Rd1 {[%clk 0:00:07]}  Qe5 {[%clk 0:00:08]} 34. Ra8 {[%clk 0:00:06]}  Kg7 {[%clk 0:00:08]} 35. Ra7 {[%clk 0:00:06]}  Bd6 {[%clk 0:00:07]} 36. g3 {[%clk 0:00:05]}  Qb2 {[%clk 0:00:05]} 37. Qb3 {[%clk 0:00:04]}  Qxb3 {[%clk 0:00:05]} 38. Bxb3 {[%clk 0:00:05]}  Kxg6 {[%clk 0:00:06]} 39. Rxa6 {[%clk 0:00:05]}  Be5 {[%clk 0:00:04]} 40. Bxd5 {[%clk 0:00:05]}  exd5 {[%clk 0:00:04]} 41. Rxd5 {[%clk 0:00:05]}  Bc8 {[%clk 0:00:03]} 42. Rc6 {[%clk 0:00:04]}  Bb7 {[%clk 0:00:03]} 43. Rxe5 {[%clk 0:00:04]}  Bxc6 {[%clk 0:00:04]} 44. Re6 {[%clk 0:00:05]}  Bd5 {[%clk 0:00:04]} 45. Rd6 {[%clk 0:00:05]}  Kf5 {[%clk 0:00:04]} 46. a4 {[%clk 0:00:05]}  Ke5 {[%clk 0:00:04]} 47. Rd8 {[%clk 0:00:05]}  h5 {[%clk 0:00:05]} 48. a5 {[%clk 0:00:05]}  Ke6 {[%clk 0:00:03]} 49. a6 {[%clk 0:00:05]}  Nd7 {[%clk 0:00:04]} 50. a7 {[%clk 0:00:05]}  Nb6 {[%clk 0:00:04]} 51. Rb8 {[%clk 0:00:05]}  Na8 {[%clk 0:00:05]} 52. Rh8 {[%clk 0:00:05]}  Bf3 {[%clk 0:00:05]} 53. Kf1 {[%clk 0:00:05]}  Kf5 {[%clk 0:00:05]} 54. Rf8+ {[%clk 0:00:05]}  Kg4 {[%clk 0:00:05]} 55. Rf4+ {[%clk 0:00:05]}  Kh3 {[%clk 0:00:06]} 56. Rxf3 {[%clk 0:00:06]} 1-0


[Site "https://www.chess.com"]

[Event "Titled Tuesday Blitz January 17 Early 2023"]
[White "Fiorito, Joaquin"]
[Black "Ortega Ruiz, Jose Miguel"]
[WhiteFideId "180173"]
[BlackFideId "2209713"]
[WhiteElo "2405"]
[BlackElo "2351"]
[Result "1-0"]
[Round "09"]
[TimeControl "180+2"]
[Date "2023.01.17"]
[WhiteClock "0:00:05"]
[BlackClock "0:00:06"]

1. d4 {[%clk 0:03:00]}  g6 {[%clk 0:02:53]} 2. Nc3 {[%clk 0:03:00]}  d5 {[%clk 0:02:50]} 3. Bf4 {[%clk 0:03:00]}  c6 {[%clk 0:02:49]} 4. e3 {[%clk 0:02:55]}  Bg7 {[%clk 0:02:49]} 5. Be2 {[%clk 0:02:55]}  Nf6 {[%clk 0:02:49]} 6. h4 {[%clk 0:02:56]}  O-O {[%clk 0:02:50]} 7. h5 {[%clk 0:02:56]}  Nbd7 {[%clk 0:02:42]} 8. Qd2 {[%clk 0:02:55]}  Ne4 {[%clk 0:02:41]} 9. Nxe4 {[%clk 0:02:54]}  dxe4 {[%clk 0:02:42]} 10. hxg6 {[%clk 0:02:54]}  fxg6 {[%clk 0:02:42]} 11. O-O-O {[%clk 0:02:38]}  Nb6 {[%clk 0:02:37]} 12. Nh3 {[%clk 0:02:33]}  Be6 {[%clk 0:02:35]} 13. Ng5 {[%clk 0:02:29]}  Bxa2 {[%clk 0:02:31]} 14. Rxh7 {[%clk 0:02:27]}  e5 {[%clk 0:02:29]} 15. Rxg7+ {[%clk 0:01:21]}  Kxg7 {[%clk 0:02:29]} 16. Bxe5+ {[%clk 0:01:22]}  Kg8 {[%clk 0:02:25]} 17. Nxe4 {[%clk 0:01:21]}  Bd5 {[%clk 0:02:21]} 18. Bd3 {[%clk 0:01:21]}  Qh4 {[%clk 0:02:14]} 19. g3 {[%clk 0:01:15]}  Qh2 {[%clk 0:01:57]} 20. Nf6+ {[%clk 0:01:11]}  Rxf6 {[%clk 0:01:57]} 21. Bxf6 {[%clk 0:01:11]}  Rf8 {[%clk 0:01:58]} 22. e4 {[%clk 0:00:54]}  Rxf6 {[%clk 0:01:56]} 23. exd5 {[%clk 0:00:54]}  cxd5 {[%clk 0:01:50]} 24. Qg5 {[%clk 0:00:51]}  Kg7 {[%clk 0:01:36]} 25. f4 {[%clk 0:00:47]}  Qh5 {[%clk 0:01:32]} 26. Qe5 {[%clk 0:00:41]}  Qxe5 {[%clk 0:01:27]} 27. dxe5 {[%clk 0:00:42]}  Rc6 {[%clk 0:01:26]} 28. Be2 {[%clk 0:00:37]}  Kf7 {[%clk 0:01:26]} 29. Rh1 {[%clk 0:00:30]}  Kg7 {[%clk 0:01:21]} 30. g4 {[%clk 0:00:28]}  Nd7 {[%clk 0:01:20]} 31. Bd3 {[%clk 0:00:27]}  Nc5 {[%clk 0:01:11]} 32. Rh3 {[%clk 0:00:20]}  Ne6 {[%clk 0:01:06]} 33. f5 {[%clk 0:00:19]}  Nf4 {[%clk 0:01:06]} 34. f6+ {[%clk 0:00:18]}  Kg8 {[%clk 0:01:03]} 35. Rf3 {[%clk 0:00:17]}  g5 {[%clk 0:01:02]} 36. Bf5 {[%clk 0:00:17]}  Kf7 {[%clk 0:01:02]} 37. Ra3 {[%clk 0:00:15]}  a6 {[%clk 0:01:02]} 38. Rb3 {[%clk 0:00:15]}  b5 {[%clk 0:01:02]} 39. Kd2 {[%clk 0:00:16]}  Rc4 {[%clk 0:01:02]} 40. Re3 {[%clk 0:00:15]}  Rd4+ {[%clk 0:01:01]} 41. Kc3 {[%clk 0:00:14]}  Rc4+ {[%clk 0:01:01]} 42. Kb3 {[%clk 0:00:14]}  d4 {[%clk 0:00:56]} 43. e6+ {[%clk 0:00:13]}  Kxf6 {[%clk 0:00:55]} 44. e7 {[%clk 0:00:14]}  dxe3 {[%clk 0:00:55]} 45. e8=Q {[%clk 0:00:14]}  e2 {[%clk 0:00:53]} 46. Bd3 {[%clk 0:00:11]}  Ne6 {[%clk 0:00:26]} 47. Qh8+ {[%clk 0:00:09]}  Ke7 {[%clk 0:00:23]} 48. Qh7+ {[%clk 0:00:08]}  Kd6 {[%clk 0:00:21]} 49. Qh1 {[%clk 0:00:08]}  Nd4+ {[%clk 0:00:20]} 50. Ka2 {[%clk 0:00:09]}  Rc5 {[%clk 0:00:15]} 51. Qh2+ {[%clk 0:00:08]}  Re5 {[%clk 0:00:15]} 52. Bxe2 {[%clk 0:00:08]}  Nxe2 {[%clk 0:00:15]} 53. Qh6+ {[%clk 0:00:08]}  Kc5 {[%clk 0:00:15]} 54. Qxa6 {[%clk 0:00:08]}  Nd4 {[%clk 0:00:14]} 55. Qa7+ {[%clk 0:00:08]}  Kd5 {[%clk 0:00:14]} 56. Qd7+ {[%clk 0:00:08]}  Ke4 {[%clk 0:00:14]} 57. c3 {[%clk 0:00:08]}  Ne6 {[%clk 0:00:13]} 58. Qd1 {[%clk 0:00:07]}  Kf4 {[%clk 0:00:13]} 59. b3 {[%clk 0:00:06]}  Nc5 {[%clk 0:00:09]} 60. Ka3 {[%clk 0:00:06]}  Ne4 {[%clk 0:00:09]} 61. Qd4 {[%clk 0:00:06]}  Re6 {[%clk 0:00:06]} 62. Qd5 {[%clk 0:00:04]}  Rd6 {[%clk 0:00:06]} 63. Qf5+ {[%clk 0:00:04]}  Ke3 {[%clk 0:00:06]} 64. c4 {[%clk 0:00:04]}  bxc4 {[%clk 0:00:07]} 65. bxc4 {[%clk 0:00:05]}  Rc6 {[%clk 0:00:08]} 66. Kb4 {[%clk 0:00:05]}  Rc7 {[%clk 0:00:05]} 67. Qe5 {[%clk 0:00:02]}  Rb7+ {[%clk 0:00:05]} 68. Ka5 {[%clk 0:00:03]}  Kd3 {[%clk 0:00:05]} 69. Qd5+ {[%clk 0:00:02]}  Kc3 {[%clk 0:00:03]} 70. Qxb7 {[%clk 0:00:03]}  Nc5 {[%clk 0:00:03]} 71. Qd5 {[%clk 0:00:03]}  Nb3+ {[%clk 0:00:04]} 72. Kb5 {[%clk 0:00:03]}  Nd4+ {[%clk 0:00:05]} 73. Kb6 {[%clk 0:00:03]}  Nb3 {[%clk 0:00:05]} 74. c5 {[%clk 0:00:04]}  Nd4 {[%clk 0:00:06]} 75. c6 {[%clk 0:00:04]}  Nb5 {[%clk 0:00:06]} 76. Qc5+ {[%clk 0:00:04]}  Kb3 {[%clk 0:00:06]} 77. Qxb5+ {[%clk 0:00:05]} 1-0


[Site "https://www.chess.com"]